bitfinex-derivatives/quotes_SOLF0:USTF0_20260215
["timestamp","ask_amount","ask_price","bid_price","bid_amount"]
[1771117182129,90.56,88.168,88.121,5.50791136]
[1771117182130,3.7115503,88.158,88.121,5.50791136]
[1771117183726,10.2152,88.153,88.121,5.50791136]
[1771117187434,13.84336501,88.153,88.121,5.50791136]
[1771117187825,3.60144254,88.152,88.121,5.50791136]
[1771117189732,13.83486044,88.162,88.121,5.50791136]
[1771117190133,13.83486044,88.162,88.131,5.87661155]
[1771117192641,3.61429664,88.161,88.12,2.40462328]
[1771117192836,3.61429664,88.161,88.121,5.87661155]
[1771117197241,10.2146,88.158,88.121,5.87661155]
[1771117198043,10.2154,88.151,88.121,5.87661155]
[1771117198834,3.51264924,88.147,88.11,8.28123483]
[1771117199241,3.51264924,88.147,88.111,5.87661155]
[1771117199844,10.216,88.146,88.111,5.87661155]
[1771117200548,10.2168,88.139,88.111,5.87661155]
[1771117200838,3.45331855,88.138,88.1,5.87661155]
[1771117201240,5.65453457,88.133,88.08,2.4031272]
[1771117201840,5.65453457,88.129,88.07,2.4031272]
[1771117202242,5.65453457,88.116,88.045,10.2276]
[1771117202434,5.65453457,88.116,88.06,2.4031272]
[1771117202638,5.65453457,88.109,88.05,2.4031272]
[1771117203247,5.65453457,88.109,88.051,5.87661155]
[1771117204039,5.65453457,88.122,88.06,2.4031272]
[1771117204242,5.65453457,88.122,88.018,124.6]
[1771117204243,5.65453457,88.122,88.071,5.87661155]
[1771117207150,5.65453457,88.122,88.08,2.40570498]
[1771117207353,5.65453457,88.122,88.081,5.87661155]
[1771117210042,5.65453457,88.122,88.07,8.28231653]
[1771117210449,5.65453457,88.122,88.07,5.87661155]
[1771117211245,5.65453457,88.119,88.059,5.87661155]
[1771117211840,2.40570498,88.11,88.059,5.87661155]
[1771117212045,5.65453457,88.109,88.059,5.87661155]
[1771117212441,5.65453457,88.109,88.061,5.87661155]
[1771117213856,10.218,88.128,88.07,2.40570498]
[1771117214144,5.31563066,88.127,88.071,5.55798336]
[1771117214751,5.31563066,88.125,88.071,5.55798336]
[1771117215655,5.31563066,88.121,88.071,5.55798336]
[1771117215848,90.56,88.131,88.08,2.40570498]
[1771117216049,5.31563066,88.133,88.081,5.55798336]
[1771117216849,10.2179,88.129,88.081,5.55798336]
[1771117219251,5.31563066,88.128,88.081,5.55798336]
[1771117219557,5.31563066,88.128,88.091,5.55798336]
[1771117226360,5.31563066,88.128,88.081,5.55798336]
[1771117229162,5.31563066,88.123,88.081,5.55798336]
[1771117230758,10.2187,88.122,88.081,5.55798336]
[1771117230965,5.31563066,88.121,88.081,5.55798336]
[1771117234871,2.40570498,88.15,88.091,5.55798336]
[1771117235161,2.40570498,88.15,88.042,124.62]
[1771117235162,5.31563066,88.151,88.11,2.40570498]
[1771117235365,5.31563066,88.151,88.111,5.55798336]
[1771117236967,5.31563066,88.177,88.121,5.55798336]
[1771117237769,5.31563066,88.168,88.121,5.55798336]
[1771117239370,5.31563066,88.168,88.131,5.55798336]
[1771117244067,10.2112,88.187,88.131,5.55798336]
[1771117244273,5.3275415,88.186,88.131,5.55798336]
[1771117245672,5.3275415,88.182,88.131,5.55798336]
[1771117249169,5.3275415,88.182,88.141,5.2639546]
[1771117255576,10.2105,88.193,88.141,5.2639546]
[1771117255775,10.2105,88.193,88.151,5.2639546]
[1771117256179,5.3275415,88.196,88.151,5.2639546]
[1771117260485,5.3275415,88.22,88.171,5.2639546]
[1771117260681,5.3275415,88.22,88.181,5.2639546]
[1771117260879,5.3275415,88.22,88.19,2.40570498]
[1771117261083,5.3275415,88.245,88.19,2.40570498]
[1771117261385,5.3275415,88.245,88.19,7.66965958]
[1771117261781,286.46,88.246,88.14,90.52]
[1771117261782,5.3275415,88.228,88.178,5.2639546]
[1771117261986,5.3275415,88.228,88.161,5.2639546]
[1771117262187,5.3275415,88.214,88.161,5.2639546]
[1771117262587,5.3275415,88.214,88.17,2.40570498]
[1771117263187,5.3275415,88.214,88.17,7.66965958]
[1771117263381,5.3275415,88.214,88.171,5.2639546]
[1771117263987,10.2069,88.224,88.181,5.2639546]
[1771117266090,5.3275415,88.252,88.201,5.2639546]
[1771117266985,5.3275415,88.268,88.205,5.2639546]
[1771117267288,5.3275415,88.268,88.221,5.2639546]
[1771117267478,5.3275415,88.259,88.206,5.2639546]
[1771117268386,5.3275415,88.259,88.211,5.2639546]
[1771117268787,5.3275415,88.258,88.211,5.2639546]
[1771117269181,5.3275415,88.255,88.2,2.3979424]
[1771117269379,5.3275415,88.255,88.133,28.23458467]
[1771117269380,5.3275415,88.229,88.171,5.2639546]
[1771117275399,10.2046,88.244,88.191,5.35166082]
[1771117275697,15.5700657,88.244,88.191,5.35166082]
[1771117275992,5.3654657,88.244,88.191,5.35166082]
[1771117276197,5.3654657,88.244,88.201,5.35166082]
[1771117278996,5.3654657,88.229,88.173,5.35166082]
[1771117279395,5.3654657,88.219,88.173,5.35166082]
[1771117280799,10.2064,88.228,88.173,5.35166082]
[1771117281905,5.3654657,88.231,88.181,5.35166082]
[1771117282601,95.8254657,88.247,88.191,5.35166082]
[1771117282806,5.3654657,88.247,88.191,5.35166082]
[1771117283405,5.3654657,88.247,88.201,5.35166082]
[1771117286102,5.3654657,88.245,88.201,5.35166082]
[1771117287499,5.3654657,88.239,88.184,5.35166082]
[1771117290403,5.3654657,88.237,88.184,5.35166082]
[1771117291703,5.3654657,88.235,88.184,5.35166082]
[1771117293806,5.3654657,88.233,88.184,5.35166082]
[1771117296011,5.3654657,88.227,88.184,5.35166082]
[1771117296906,15.5722657,88.225,88.184,5.35166082]
[1771117300915,15.5722657,88.225,88.137,28.23458467]
[1771117300916,5.32415492,88.21,88.17,5.59212456]
[1771117302016,5.32415492,88.208,88.17,5.59212456]
[1771117306315,5.32415492,88.208,88.159,5.61948787]
[1771117307019,5.32415492,88.208,88.161,5.61948787]
[1771117307921,5.32415492,88.208,88.163,5.61948787]
[1771117311521,5.14252394,88.199,88.149,5.61948787]
[1771117312517,5.14252394,88.188,88.137,5.61948787]
[1771117312823,5.14252394,88.188,88.131,5.61948787]
[1771117313819,10.2103,88.195,88.141,5.61948787]
[1771117314021,10.2103,88.195,88.151,5.61948787]
[1771117314219,5.14252394,88.2,88.151,5.61948787]
[1771117314522,5.14252394,88.214,88.161,5.61948787]
[1771117315023,5.14252394,88.209,88.161,5.61948787]
[1771117315518,5.14252394,88.209,88.16,2.3979424]
[1771117315714,5.14252394,88.209,88.161,5.61948787]
[1771117317017,5.14252394,88.209,88.17,2.3979424]
[1771117317217,5.14252394,88.235,88.171,5.61948787]
[1771117317923,5.14252394,88.211,88.171,5.61948787]
[1771117318120,5.14252394,88.211,88.16,2.3979424]
[1771117319724,10.2086,88.21,88.16,2.3979424]
[1771117319921,5.14252394,88.209,88.17,8.01743027]
[1771117320223,5.14252394,88.209,88.171,5.61948787]
[1771117321523,5.14252394,88.209,88.16,2.3979424]
[1771117321728,5.14252394,88.209,88.161,5.61948787]
[1771117326827,5.14252394,88.207,88.161,5.61948787]
[1771117327832,5.14252394,88.205,88.161,5.61948787]
[1771117331031,10.2093,88.203,88.161,5.61948787]
[1771117331234,5.14252394,88.202,88.161,5.61948787]
[1771117334638,5.39486958,88.21,88.161,5.61948787]
[1771117335236,5.39486958,88.21,88.17,2.40079728]
[1771117335734,5.39486958,88.21,88.161,5.61948787]
[1771117335935,5.39486958,88.222,88.181,5.47078177]
[1771117337838,10.2073,88.221,88.181,5.47078177]
[1771117338034,5.39486958,88.235,88.181,5.47078177]
[1771117338441,10.2063,88.23,88.181,5.47078177]
[1771117339443,5.39486958,88.229,88.181,5.47078177]
[1771117342837,5.39486958,88.229,88.19,2.40079728]
[1771117344141,5.39486958,88.229,88.181,5.47078177]
[1771117344843,10.2052,88.239,88.191,5.47078177]
[1771117345338,5.39486958,88.238,88.2,2.40079728]
[1771117345541,5.39486958,88.238,88.201,5.47078177]
[1771117345744,90.48,88.256,88.201,5.47078177]
[1771117345745,5.39486958,88.251,88.201,5.47078177]
[1771117346540,5.39486958,88.264,88.22,2.40079728]
[1771117346841,5.39486958,88.264,88.221,5.47078177]
[1771117347838,5.39486958,88.259,88.209,5.47078177]
[1771117351238,5.39486958,88.239,88.184,5.47078177]
[1771117351836,5.39486958,88.239,88.164,97.22]
[1771117351837,5.39486958,88.239,88.171,5.47078177]
[1771117352246,5.39486958,88.239,88.181,5.47078177]
[1771117352444,5.39486958,88.229,88.181,5.47078177]
[1771117354541,5.39486958,88.221,88.17,2.40079728]
[1771117354745,5.39486958,88.209,88.157,5.47078177]
[1771117356440,5.39486958,88.202,88.157,5.47078177]
[1771117357749,5.39486958,88.199,88.157,5.47078177]
[1771117359847,15.60486958,88.198,88.157,5.47078177]
[1771117361650,5.21373123,88.195,88.141,5.4960549]
[1771117362851,10.2106,88.193,88.141,5.4960549]
[1771117363251,5.21373123,88.195,88.141,5.4960549]
[1771117365642,5.53895165,88.194,88.141,5.4960549]
[1771117367254,10.2092,88.204,88.141,5.4960549]
[1771117367255,5.53895165,88.203,88.141,5.4960549]
[1771117367449,5.53895165,88.203,88.15,2.40079728]
[1771117367648,5.53895165,88.203,88.151,5.45787544]
[1771117368243,5.53895165,88.203,88.161,5.45787544]
[1771117368645,5.53895165,88.231,88.181,5.45787544]
[1771117369053,5.53895165,88.229,88.181,5.45787544]
[1771117370952,10.2066,88.227,88.181,5.45787544]
[1771117371258,5.53895165,88.226,88.181,5.45787544]
[1771117375463,5.53895165,88.242,88.19,2.40079728]
[1771117375761,5.53895165,88.242,88.191,5.45787544]
[1771117377764,10.2041,88.249,88.201,5.45787544]
[1771117378563,5.53895165,88.254,88.201,5.45787544]
[1771117380258,5.53895165,88.248,88.189,5.45787544]
[1771117380564,5.53895165,88.229,88.176,5.45787544]
[1771117380966,5.53895165,88.224,88.176,5.45787544]
[1771117383469,15.74385165,88.241,88.19,2.40079728]
[1771117383668,15.74385165,88.241,88.191,5.45787544]
[1771117384464,5.53895165,88.241,88.191,5.45787544]
[1771117385372,5.53895165,88.241,88.2,7.85867272]
[1771117387768,5.53895165,88.241,88.201,5.45787544]
[1771117388369,10.2038,88.251,88.201,5.45787544]
[1771117388775,5.53895165,88.254,88.211,5.45787544]
[1771117390277,15.74065165,88.269,88.221,5.45787544]
[1771117390477,5.53895165,88.268,88.221,5.45787544]
[1771117390676,5.53895165,88.266,88.221,5.45787544]
[1771117391472,5.53895165,88.266,88.21,2.39791617]
[1771117391672,5.53895165,88.266,88.211,5.45787544]
[1771117391879,5.53895165,88.263,88.211,5.45787544]
[1771117395277,5.14040979,88.259,88.211,5.45787544]
[1771117397379,5.14040979,88.245,88.201,5.16137863]
[1771117397687,5.14040979,88.265,88.21,2.39791617]
[1771117397986,15.34260979,88.265,88.211,5.16137863]
[1771117398486,5.14040979,88.264,88.211,5.16137863]
[1771117399486,5.14040979,88.264,88.221,5.16137863]
[1771117400784,10.2024,88.263,88.221,5.16137863]
[1771117401388,15.34280979,88.263,88.221,5.16137863]
[1771117402985,5.14040979,88.262,88.221,5.16137863]
[1771117403776,5.14040979,88.259,88.201,5.16137863]
[1771117404188,5.14040979,88.259,88.21,2.39791617]
[1771117404387,5.14040979,88.259,88.211,5.16137863]
[1771117405786,5.14040979,88.259,88.21,2.39791617]
[1771117405990,5.14040979,88.256,88.201,5.16137863]
[1771117406189,5.14040979,88.256,88.211,5.16137863]
[1771117406688,5.14040979,88.253,88.211,5.16137863]
[1771117407284,5.14040979,88.249,88.197,5.16137863]
[1771117407486,5.14040979,88.245,88.197,5.16137863]
[1771117408989,5.14040979,88.239,88.184,5.16137863]
[1771117409388,5.14040979,88.239,88.19,2.39791617]
[1771117409588,5.14040979,88.239,88.191,5.16137863]
[1771117410082,5.14040979,88.253,88.201,5.16137863]
[1771117410992,5.14040979,88.25,88.201,5.16137863]
[1771117411791,10.2047,88.243,88.201,5.16137863]
[1771117413090,5.14040979,88.24,88.185,5.16137863]
[1771117413287,5.14040979,88.239,88.185,5.16137863]
[1771117414086,5.14040979,88.239,88.19,2.39791617]
[1771117414291,5.14040979,88.239,88.191,5.16137863]
[1771117420092,8.72099213,88.266,88.18,10.2119]
[1771117420093,15.34420979,88.251,88.201,5.16137863]
[1771117421394,15.34420979,88.251,88.167,34.06]
[1771117421395,5.1544602,88.284,88.24,2.39791617]
[1771117421592,5.1544602,88.284,88.241,5.46669546]
[1771117423700,5.57796093,88.282,88.241,5.46669546]
[1771117424403,10.2006,88.278,88.241,5.46669546]
[1771117424702,5.57796093,88.277,88.23,2.39791617]
[1771117425599,5.57796093,88.277,88.231,5.34527917]
[1771117429303,5.57796093,88.277,88.22,2.39791617]
[1771117429800,5.57796093,88.277,88.22,7.74319534]
[1771117430002,5.57796093,88.277,88.221,5.34527917]
[1771117430702,10.2009,88.276,88.221,5.34527917]
[1771117430900,5.57796093,88.275,88.221,5.34527917]
[1771117432504,5.57796093,88.269,88.211,10.2083]
[1771117433299,5.57796093,88.269,88.224,5.34527917]
[1771117433505,5.57796093,88.269,88.231,5.34527917]
[1771117436201,5.57796093,88.282,88.231,5.34527917]
[1771117438405,5.57796093,88.282,88.232,10.2059]
[1771117438706,5.57796093,88.282,88.241,5.34527917]
[1771117439704,5.57796093,88.295,88.241,5.34527917]
[1771117440105,5.57796093,88.293,88.241,5.34527917]
[1771117440813,5.57796093,88.291,88.241,5.34527917]
[1771117441612,5.57796093,88.288,88.241,5.34527917]
[1771117441814,5.57796093,88.279,88.221,5.34527917]
[1771117442808,5.57796093,88.276,88.221,5.34527917]
[1771117445110,15.77916093,88.273,88.221,5.34527917]
[1771117445315,5.57796093,88.288,88.241,5.34527917]
[1771117445813,5.57796093,88.309,88.251,5.34527917]
[1771117446212,5.57796093,88.309,88.261,5.34527917]
[1771117446708,8.70200572,88.329,88.261,5.34527917]
[1771117446709,5.57796093,88.303,88.261,5.34527917]
[1771117447715,15.77596093,88.301,88.261,5.34527917]
[1771117447912,5.57796093,88.3,88.25,2.39791617]
[1771117448117,5.57796093,88.3,88.245,5.34527917]
[1771117448709,5.57796093,88.297,88.245,5.34527917]
[1771117449220,5.57796093,88.297,88.251,5.34527917]
[1771117449420,10.1987,88.296,88.251,5.34527917]
[1771117449621,15.77666093,88.296,88.251,5.34527917]
[1771117449819,5.57796093,88.295,88.251,5.34527917]
[1771117450716,10.1989,88.294,88.251,5.34527917]
[1771117451221,5.57796093,88.293,88.251,5.34527917]
[1771117452523,5.57796093,88.293,88.195,20.4203]
[1771117452524,5.57796093,88.283,88.221,5.34527917]
[1771117453314,5.55509422,88.277,88.223,5.31845598]
[1771117454715,15.75599422,88.276,88.23,2.39575257]
[1771117454910,5.55509422,88.275,88.23,2.39575257]
[1771117455516,10.2014,88.272,88.225,5.31845598]
[1771117458521,15.75649422,88.272,88.225,5.31845598]
[1771117460017,5.55509422,88.269,88.225,5.31845598]
[1771117464319,5.55509422,88.282,88.23,2.39575257]
[1771117464624,5.55509422,88.282,88.241,5.31845598]
[1771117466125,5.55509422,88.279,88.221,5.31845598]
[1771117470519,5.55509422,88.269,88.221,5.31845598]
[1771117471418,2.39575257,88.26,88.209,5.31845598]
[1771117471618,5.55509422,88.259,88.209,5.31845598]
[1771117476228,2.39575257,88.27,88.211,5.31845598]
[1771117476426,5.55509422,88.272,88.221,5.31845598]
[1771117477930,5.55509422,88.27,88.221,5.31845598]
[1771117478530,5.55509422,88.269,88.221,5.31845598]
[1771117479425,5.55509422,88.269,88.209,5.31845598]
[1771117479730,5.55509422,88.257,88.209,5.31845598]
[1771117479927,5.55509422,88.257,88.196,5.31845598]
[1771117480730,5.55740502,88.255,88.196,5.31845598]
[1771117481023,5.55740502,88.249,88.196,5.31845598]
[1771117482826,5.55740502,88.245,88.196,5.31845598]
[1771117487441,10.2047,88.243,88.196,5.31845598]
[1771117487945,10.205,88.24,88.196,5.31845598]
[1771117488343,15.68495103,88.24,88.196,5.31845598]
[1771117488739,10.2054,88.237,88.196,5.31845598]
[1771117490040,5.47995103,88.239,88.196,5.31845598]
[1771117491944,5.47995103,88.239,88.201,5.30187833]
[1771117492546,5.47995103,88.239,88.191,5.30187833]
[1771117495941,5.47995103,88.236,88.191,5.30187833]
[1771117498544,5.47995103,88.236,88.161,11.34]
[1771117498545,5.47995103,88.253,88.201,5.30187833]
[1771117500450,103.54,88.265,88.221,5.30187833]
[1771117500451,5.47995103,88.265,88.221,5.30187833]
[1771117500651,5.47995103,88.279,88.221,5.30187833]
[1771117500958,5.47995103,88.279,88.152,35.30650565]
[1771117500959,5.47995103,88.291,88.241,5.30187833]
[1771117502759,5.47995103,88.289,88.241,5.30187833]
[1771117503552,5.47995103,88.285,88.241,5.30187833]
[1771117503756,5.47995103,88.285,88.23,2.39575257]
[1771117503952,5.47995103,88.285,88.229,5.30187833]
[1771117504147,5.47995103,88.285,88.23,2.39575257]
[1771117504357,5.47995103,88.285,88.231,5.30187833]
[1771117504754,10.2002,88.282,88.231,5.30187833]
[1771117505059,5.47995103,88.281,88.231,5.30187833]
[1771117505354,5.47995103,88.293,88.241,5.30187833]
[1771117506453,5.47995103,88.305,88.26,2.39575257]
[1771117506660,5.47995103,88.305,88.27,2.39575257]
[1771117507359,5.47995103,88.305,88.261,5.30187833]
[1771117509351,15.67605103,88.318,88.28,2.39575257]
[1771117509560,5.47995103,88.314,88.271,5.30187833]
[1771117510045,10.1969,88.311,88.27,2.39575257]
[1771117510250,5.47995103,88.31,88.26,2.39575257]
[1771117510457,5.47995103,88.31,88.27,2.39575257]
[1771117510654,5.47995103,88.323,88.271,5.30187833]
[1771117512959,5.47995103,88.32,88.271,5.30187833]
[1771117513860,2.39473927,88.33,88.233,90.42]
[1771117513861,5.40690852,88.332,88.281,5.49867763]
[1771117514260,5.40690852,88.332,88.291,5.49867763]
[1771117514261,10.1949,88.328,88.291,5.49867763]
[1771117514862,5.40690852,88.332,88.291,5.49867763]
[1771117515562,10.1947,88.33,88.291,5.49867763]
[1771117517361,5.40690852,88.332,88.291,5.49867763]
[1771117517566,5.40690852,88.379,88.32,2.39473927]
[1771117517868,5.40690852,88.339,88.284,5.49867763]
[1771117518265,5.40690852,88.324,88.271,5.49867763]
[1771117518668,10.1971,88.309,88.271,5.49867763]
[1771117518862,10.1971,88.309,88.198,28.23458467]
[1771117518863,5.40690852,88.308,88.255,5.49867763]
[1771117519471,10.1973,88.307,88.261,5.49867763]
[1771117520570,5.40690852,88.308,88.27,2.39473927]
[1771117520771,5.40690852,88.316,88.28,2.39473927]
[1771117520972,5.40690852,88.339,88.281,5.49867763]
[1771117521667,10.1951,88.326,88.281,5.49867763]
[1771117523074,5.40690852,88.335,88.281,5.49867763]
[1771117523871,10.1931,88.343,88.301,5.49867763]
[1771117524073,5.40690852,88.361,88.311,5.49867763]
[1771117524462,10.192,88.353,88.311,5.49867763]
[1771117527376,10.1925,88.349,88.311,5.49867763]
[1771117527976,5.40690852,88.348,88.31,2.39473927]
[1771117528179,10.1928,88.346,88.301,5.49867763]
[1771117528367,5.40690852,88.348,88.301,5.49867763]
[1771117528567,5.40690852,88.319,88.26,2.39473927]
[1771117528872,5.40690852,88.309,88.25,2.39473927]
[1771117529176,5.40690852,88.309,88.251,5.49867763]
[1771117529479,15.60440852,88.306,88.251,5.49867763]
[1771117530174,15.60440852,88.306,88.26,2.39473927]
[1771117530577,10.1977,88.304,88.251,5.49867763]
[1771117531781,10.1977,88.304,88.26,2.39473927]
[1771117532078,2.39473927,88.32,88.222,90.36]
[1771117532079,10.1966,88.313,88.271,5.49867763]
[1771117532278,5.40690852,88.32,88.28,2.39473927]
[1771117534786,5.40690852,88.315,88.26,2.39473927]
[1771117534977,5.40690852,88.315,88.254,5.49867763]
[1771117536180,5.40690852,88.315,88.261,5.49867763]
[1771117536379,5.40690852,88.315,88.27,2.39473927]
[1771117537891,5.40690852,88.315,88.261,5.49867763]
[1771117538687,5.40690852,88.315,88.27,2.39473927]
[1771117539086,5.40690852,88.33,88.271,5.49867763]
[1771117539292,5.40690852,88.349,88.291,5.49867763]
[1771117540785,2.39473927,88.35,88.291,5.49867763]
[1771117540786,5.1677683,88.342,88.291,5.49867763]
[1771117541990,5.1677683,88.336,88.29,2.39473927]
[1771117542186,5.1677683,88.336,88.28,2.39473927]
[1771117542786,5.1677683,88.333,88.28,7.59320958]
[1771117543490,5.1677683,88.333,88.281,5.2013331]
[1771117545687,10.1931,88.344,88.291,5.2013331]
[1771117545888,5.12266271,88.343,88.291,5.2013331]
[1771117546694,10.1936,88.339,88.291,5.2013331]
[1771117546892,5.12266271,88.338,88.291,5.2013331]
[1771117547496,5.12266271,88.336,88.291,5.2013331]
[1771117548100,5.12266271,88.336,88.28,2.39473927]
[1771117548101,10.195,88.327,88.28,2.39473927]
[1771117548498,10.195,88.327,88.281,5.2013331]
[1771117551595,15.31766271,88.327,88.281,5.2013331]
[1771117551790,5.12266271,88.326,88.281,5.2013331]
[1771117555499,15.31796271,88.325,88.281,5.2013331]
[1771117555694,5.12266271,88.324,88.264,5.2013331]
[1771117555900,10.1958,88.32,88.271,5.2013331]
[1771117556096,10.1958,88.32,88.28,7.59607237]
[1771117556298,15.31846271,88.32,88.28,7.59607237]
[1771117556694,15.31746271,88.329,88.281,5.2013331]
[1771117557101,5.12266271,88.328,88.281,5.2013331]
[1771117558802,15.31756271,88.328,88.281,5.2013331]
[1771117559002,5.12266271,88.327,88.281,5.2013331]
[1771117559204,5.12266271,88.327,88.27,7.59607237]
[1771117559404,5.12266271,88.326,88.271,5.2013331]
[1771117560505,10.1952,88.325,88.271,5.2013331]
[1771117560703,5.12266271,88.326,88.28,7.59607237]
[1771117560902,5.12266271,88.341,88.29,7.59607237]
[1771117561802,5.12266271,88.341,88.29,5.2013331]
[1771117562307,5.12266271,88.341,88.291,5.2013331]
[1771117562509,2.39473927,88.36,88.249,34.03]
[1771117562510,2.39473927,88.37,88.311,5.2013331]
[1771117562713,5.12266271,88.37,88.32,7.59607237]
[1771117563210,5.12266271,88.368,88.32,7.59607237]
[1771117564511,5.12266271,88.376,88.274,5.2013331]
[1771117564713,8.81083444,88.448,88.37,2.39473927]
[1771117564913,8.81083444,88.464,88.42,2.39473927]
[1771117565313,8.81083444,88.464,88.345,27.9467974]
[1771117565314,8.81083444,88.464,88.41,2.39473927]
[1771117565715,8.81083444,88.464,88.42,2.39473927]
[1771117566018,8.81083444,88.464,88.38,10.1888]
[1771117566214,8.97487113,88.46,88.41,2.39473927]
[1771117567012,8.97557596,88.458,88.41,2.39473927]
[1771117567219,159.77557596,88.458,88.41,2.39473927]
[1771117567419,8.97557596,88.457,88.41,2.39473927]
[1771117568822,8.97557596,88.457,88.42,2.39473927]
[1771117569719,8.97557596,88.457,88.41,2.39473927]
[1771117570020,8.97557596,88.457,88.42,2.39473927]
[1771117570323,8.81527599,88.492,88.44,2.39473927]
[1771117570511,2.39473927,88.5,88.44,2.39473927]
[1771117570512,212.71527599,88.491,88.44,2.39473927]
[1771117570715,8.81527599,88.491,88.45,2.39473927]
[1771117571013,8.81527599,88.491,88.44,2.39473927]
[1771117572020,8.81527599,88.491,88.45,2.39473927]
[1771117572616,90.3,88.498,88.45,2.39473927]
[1771117572817,8.90996979,88.525,88.47,2.39473927]
[1771117573018,8.90996979,88.524,88.47,2.38362362]
[1771117573414,8.90996979,88.524,88.46,2.38362362]
[1771117574322,99.64,88.525,88.46,2.38362362]
[1771117574323,8.96877251,88.519,88.46,2.38362362]
[1771117576426,8.96208486,88.509,88.45,2.38362362]
[1771117576823,8.96208486,88.509,88.43,5.96124945]
[1771117577623,8.96208486,88.509,88.433,10.1827]
[1771117578320,125.94,88.508,88.433,10.1827]
[1771117578622,8.92632142,88.507,88.433,10.1827]
[1771117579222,8.92632142,88.507,88.421,10.1841]
[1771117579424,8.92688395,88.505,88.421,10.1841]
[1771117580520,5.96124945,88.52,88.409,10.1855]
[1771117580521,8.99991433,88.503,88.409,10.1855]
[1771117581522,8.99991433,88.503,88.424,10.1837]
[1771117581726,8.99991433,88.503,88.44,5.96124945]
[1771117582330,8.99991433,88.503,88.444,10.1814]
[1771117583429,8.99991433,88.503,88.455,10.1802]
[1771117585220,8.99991433,88.503,88.444,10.1814]
[1771117585427,8.99991433,88.503,88.42,5.96124945]
[1771117585828,8.99991433,88.503,88.454,10.1803]
[1771117588435,8.99991433,88.503,88.465,10.179]
[1771117590332,5.96124945,88.55,88.457,2.29423069]
[1771117590537,142.88,88.549,88.457,2.29423069]
[1771117591229,5.96124945,88.55,88.457,2.29423069]
[1771117591431,255.82,88.548,88.457,2.29423069]
[1771117591738,255.82,88.548,88.484,10.1768]
[1771117592235,5.36071842,88.546,88.484,10.1768]
[1771117592626,256.18,88.545,88.484,10.1768]
[1771117592825,5.36071842,88.544,88.484,10.1768]
[1771117594635,5.36071842,88.542,88.457,2.29423069]
[1771117595530,5.36071842,88.54,88.457,2.29423069]
[1771117595735,5.36071842,88.54,88.457,12.47413069]
[1771117595936,5.36071842,88.54,88.458,2.51591104]
[1771117596834,2.38422688,88.52,88.46,12.56372688]
[1771117597033,5.36071842,88.518,88.461,2.52889986]
[1771117597433,176.24,88.517,88.461,2.52889986]
[1771117599237,207.56,88.517,88.471,2.56814617]
[1771117599442,257.68,88.522,88.471,2.56814617]
[1771117599644,257.68,88.522,88.48,2.38422688]
[1771117600443,257.68,88.522,88.471,2.56814617]
[1771117601243,5.77662141,88.523,88.471,2.56814617]
[1771117605648,137.06,88.522,88.471,2.56814617]
[1771117606049,5.46617345,88.521,88.471,2.56814617]
[1771117607246,2.38422688,88.5,88.418,2.86812125]
[1771117607446,7.85040033,88.47,88.418,2.86812125]
[1771117607939,5.46617345,88.469,88.418,2.86812125]
[1771117609151,5.46617345,88.467,88.419,13.06839137]
[1771117609348,5.46617345,88.467,88.386,34.03]
[1771117609349,5.46617345,88.467,88.421,2.88409137]
[1771117610251,228.0,88.473,88.421,2.88409137]
[1771117610645,5.46617345,88.472,88.421,2.88409137]
[1771117611743,5.46617345,88.472,88.423,10.1838]
[1771117612750,5.46617345,88.472,88.43,10.183]
[1771117612951,5.46617345,88.472,88.43,12.56722688]
[1771117614753,5.46617345,88.472,88.43,10.183]
[1771117616652,5.46617345,88.472,88.439,10.182]
[1771117620358,7.345e-05,88.472,88.448,10.181]
[1771117620758,10.30501917,88.535,88.448,5.43109046]
[1771117620960,2.38422688,88.54,88.493,10.1757]
[1771117621258,261.9,88.539,88.493,10.1757]
[1771117621457,2.38422688,88.52,88.461,5.43109046]
[1771117621652,261.86,88.519,88.461,5.43109046]
[1771117621852,2.38422688,88.51,88.461,5.43109046]
[1771117622455,7.345e-05,88.513,88.461,5.43109046]
[1771117622656,90.2,88.521,88.471,5.43109046]
[1771117622862,90.2,88.526,88.471,5.43109046]
[1771117623264,2.38422688,88.53,88.488,10.1764]
[1771117623458,2.38422688,88.52,88.471,5.43109046]
[1771117624361,2.38422688,88.51,88.457,5.43109046]
[1771117624664,5.46617345,88.509,88.457,5.43109046]
[1771117624964,5.46617345,88.509,88.46,2.38422688]
[1771117625364,5.46617345,88.509,88.464,10.1791]
[1771117625559,2.38422688,88.5,88.464,10.1791]
[1771117625860,5.46617345,88.489,88.43,2.38422688]
[1771117626062,5.46617345,88.489,88.431,5.43109046]
[1771117630661,5.46617345,88.504,88.433,5.43109046]
[1771117630972,5.46617345,88.504,88.434,5.43109046]
[1771117631770,5.46617345,88.504,88.437,5.43109046]
[1771117632673,5.46617345,88.504,88.439,5.43109046]
[1771117632971,6.05851858,88.518,88.441,5.7422812]